bitfinex/quotes_BTCUSD_20250422
["timestamp","ask_amount","ask_price","bid_price","bid_amount"]
[1745321832676,0.11575594,88514.0,88513.0,0.01711555]
[1745321832885,0.11575594,88514.0,88513.0,0.24307105]
[1745321833462,0.11575594,88514.0,88513.0,0.23601775]
[1745321833894,0.11575594,88514.0,88513.0,0.01006225]
[1745321834272,0.11575594,88514.0,88512.0,0.22595765]
[1745321834451,0.11575594,88514.0,88513.0,0.01016627]
[1745321835525,0.34070889,88514.0,88513.0,0.01016627]
[1745321835825,0.38990889,88514.0,88513.0,0.01016627]
[1745321836032,0.01129815,88510.0,88507.0,0.34]
[1745321836252,0.11375594,88509.0,88507.0,0.34]
[1745321836792,0.11375594,88509.0,88508.0,0.56596827]
[1745321844148,0.11375594,88509.0,88507.0,0.2259701]
[1745321844355,0.11375594,88509.0,88506.0,0.23727175]
[1745321844538,0.11375594,88509.0,88508.0,0.22596827]
[1745321844776,0.11375594,88509.0,88506.0,0.01129866]
[1745321844948,0.11375594,88509.0,88507.0,0.22596891]
[1745321845154,0.11375594,88509.0,88500.0,0.15911906]
[1745321845391,0.23726884,88508.0,88507.0,0.001]
[1745321845616,0.35102478,88508.0,88507.0,0.001]
[1745321846034,0.3410216,88508.0,88507.0,0.001]
[1745321846237,0.11375594,88508.0,88506.0,0.001]
[1745321846366,0.01129777,88513.0,88508.0,0.34]
[1745321846710,0.11375594,88512.0,88508.0,0.34]
[1745321846913,0.11375594,88512.0,88509.0,0.01026003]
[1745321847056,0.12505384,88512.0,88509.0,0.01026003]
[1745321847259,0.35101296,88512.0,88508.0,0.56596774]
[1745321847458,0.35101296,88512.0,88510.0,0.01025788]
[1745321847824,0.35101296,88512.0,88511.0,0.01025788]
[1745321848240,0.12505384,88512.0,88509.0,0.22596554]
[1745321848412,0.11375594,88512.0,88511.0,0.01026003]
[1745321848619,0.11375594,88512.0,88509.0,0.22596554]
[1745321848814,0.11375594,88512.0,88511.0,0.01026003]
[1745321849209,0.11375594,88512.0,88508.0,0.57726656]
[1745321849420,0.35101396,88512.0,88511.0,0.01026003]
[1745321849592,0.35101396,88512.0,88508.0,0.57726656]
[1745321849593,0.35201396,88512.0,88508.0,0.57726656]
[1745321849815,0.35201396,88512.0,88511.0,0.01026003]
[1745321850305,0.3520119,88512.0,88509.0,0.01129828]
[1745321850520,0.3520119,88512.0,88510.0,0.01025788]
[1745321851356,0.3510119,88512.0,88510.0,0.01025788]
[1745321853030,0.22596061,88511.0,88510.0,0.01025788]
[1745321853239,0.33971655,88511.0,88510.0,0.01025788]
[1745321853473,0.22596572,88509.0,88508.0,0.34]
[1745321853677,0.11375594,88509.0,88508.0,0.34]
[1745321854304,0.11375594,88509.0,88506.0,0.57727179]
[1745321854512,0.11375594,88508.0,88506.0,0.57727179]
[1745321854710,0.11375594,88508.0,88507.0,0.56597082]
[1745321854916,0.11375594,88508.0,88507.0,0.34]
[1745321855536,0.11375594,88508.0,88507.0,0.56597082]
[1745321855749,0.11375594,88508.0,88507.0,0.34]
[1745321856330,0.11375594,88508.0,88507.0,0.341]
[1745321857238,0.11375594,88508.0,88507.0,0.342]
[1745321858006,0.11375594,88508.0,88507.0,0.56797082]
[1745321861449,0.11375594,88508.0,88507.0,0.342]
[1745321865256,0.11375594,88508.0,88507.0,0.0122796]
[1745321866304,0.11375594,88508.0,88507.0,0.23825042]
[1745321866506,0.11375594,88508.0,88507.0,0.0122796]
[1745321866706,0.11375594,88508.0,88507.0,0.23825042]
[1745321867831,0.11375594,88508.0,88507.0,0.0122796]
[1745321869608,0.11375594,88508.0,88507.0,0.23825042]
[1745321870547,0.11375594,88508.0,88507.0,0.0122796]
[1745321873399,0.11375594,88508.0,88507.0,0.23825042]
[1745321877296,0.11375594,88508.0,88507.0,0.0122796]
[1745321877475,0.11375594,88508.0,88507.0,0.23825042]
[1745321877678,0.33972421,88508.0,88507.0,0.0122796]
[1745321878045,0.11375594,88508.0,88507.0,0.0122796]
[1745321879464,0.11375594,88508.0,88507.0,0.23825042]
[1745321879669,0.11375594,88508.0,88507.0,0.0122796]
[1745321879866,0.11375594,88508.0,88507.0,0.23825042]
[1745321880470,0.11375594,88508.0,88507.0,0.0122796]
[1745321881248,0.11375594,88508.0,88507.0,0.23825042]
[1745321900559,0.11375594,88508.0,88507.0,0.0122796]
[1745321900721,0.33972421,88508.0,88507.0,0.0122796]
[1745321900927,0.33972421,88508.0,88507.0,0.002]
[1745321901132,0.33972421,88508.0,88507.0,0.01228145]
[1745321901329,0.33972421,88508.0,88507.0,0.002]
[1745321901495,0.33972421,88508.0,88507.0,0.01228145]
[1745321906282,0.33951507,88508.0,88507.0,0.01228145]
[1745321908467,0.23727244,88506.0,88501.0,0.22598388]
[1745321908668,0.11375594,88505.0,88502.0,0.00859549]
[1745321909106,0.11375594,88505.0,88502.0,0.23457883]
[1745321909714,0.11375594,88505.0,88502.0,0.247878]
[1745321910350,0.33973241,88505.0,88502.0,0.01259549]
[1745321910514,0.12505473,88505.0,88502.0,0.01259549]
[1745321910718,0.12505473,88505.0,88502.0,0.23857893]
[1745321911573,0.12505473,88505.0,88502.0,0.23457893]
[1745321911873,0.12493365,88505.0,88502.0,0.23457893]
[1745321912464,0.11363486,88505.0,88502.0,0.2478781]
[1745321913911,0.22597949,88504.0,88502.0,0.01059549]
[1745321914061,0.11375594,88503.0,88502.0,0.24787762]
[1745321914648,0.11375594,88503.0,88502.0,0.00959549]
[1745321915070,0.11375594,88503.0,88502.0,0.01159549]
[1745321915597,0.11375594,88503.0,88502.0,0.23557908]
[1745321915830,0.11375594,88503.0,88502.0,0.23757908]
[1745321921416,0.11375594,88503.0,88502.0,0.23457908]
[1745321921720,0.11375594,88503.0,88502.0,0.23657908]
[1745321936505,0.11375594,88503.0,88502.0,0.24363363]
[1745321937305,0.11375594,88503.0,88502.0,0.23657908]
[1745321938534,0.11375594,88503.0,88502.0,0.24363363]
[1745321939649,0.11360984,88503.0,88502.0,0.24363363]
[1745321953433,0.33959088,88503.0,88502.0,0.01765004]
[1745321953862,0.33959088,88503.0,88502.0,0.00905455]
[1745321954242,0.33959088,88503.0,88502.0,0.001]
[1745321954442,0.0113002,88494.0,88491.0,0.2260103]
[1745321954659,0.11375594,88493.0,88491.0,0.2260103]
[1745321954943,0.11375594,88493.0,88492.0,0.00715687]
[1745321955338,0.11375594,88493.0,88492.0,0.01421218]
[1745321956154,0.11362985,88493.0,88492.0,0.01421218]
[1745321957074,0.11362985,88493.0,88492.0,0.01521218]
[1745321957578,0.11362985,88493.0,88492.0,0.01721218]
[1745321957778,0.33963642,88493.0,88492.0,0.01721218]
[1745321958167,0.33963642,88493.0,88492.0,0.01005531]
[1745321958684,0.33963642,88493.0,88492.0,0.01728932]
[1745321959458,0.33963642,88493.0,88492.0,0.00805531]
[1745321959870,0.11362985,88493.0,88492.0,0.32986444]
[1745321960069,0.11375594,88493.0,88492.0,0.3771772]
[1745321960480,0.0491,88523.0,88511.0,0.22595916]
[1745321960481,0.06039649,88523.0,88511.0,0.22595916]
[1745321960687,0.06039649,88523.0,88512.0,0.00717896]
[1745321960688,0.011297,88519.0,88512.0,0.00717896]
[1745321960958,7.708e-05,88520.0,88512.0,0.00717896]
[1745321960959,0.11375594,88518.0,88513.0,0.2259555]
[1745321961160,0.11375594,88518.0,88513.0,0.00705531]
[1745321961287,0.35099663,88518.0,88514.0,0.00805209]
[1745321961491,0.01129726,88517.0,88515.0,0.00705531]
[1745321961706,0.11375594,88516.0,88515.0,0.00705531]
[1745321961900,0.11375594,88516.0,88515.0,0.0186321]
[1745321962123,0.12829679,88516.0,88515.0,0.01058216]
[1745321963068,0.22861679,88516.0,88515.0,0.00705531]
[1745321963609,0.23361679,88516.0,88515.0,0.00705531]
[1745321964123,0.02583849,88514.0,88505.0,0.22597559]
[1745321964380,0.11375594,88513.0,88506.0,0.00805423]
[1745321966078,0.11375594,88513.0,88507.0,0.00352711]
[1745321966292,0.11375594,88513.0,88510.0,0.2259617]
[1745321966719,0.11375594,88513.0,88511.0,0.00352711]
[1745321967028,0.11575594,88513.0,88512.0,0.00805208]
[1745321967157,0.11675594,88513.0,88512.0,0.00805208]
[1745321967366,0.45375229,88513.0,88512.0,0.00805208]
[1745321967589,0.56187485,88513.0,88512.0,0.00805208]
[1745321967787,0.01129969,88498.0,88492.0,0.001]
[1745321968011,0.11375594,88497.0,88493.0,0.22600657]
[1745321968182,0.11375594,88497.0,88493.0,0.23281316]
[1745321968389,0.11375594,88497.0,88494.0,0.22600234]
[1745321968595,0.11375594,88497.0,88493.0,0.23281316]
[1745321968802,0.11375594,88497.0,88495.0,0.01033461]
[1745321969001,0.11375594,88497.0,88495.0,0.00352763]
[1745321969349,0.11375594,88497.0,88496.0,0.00680698]
[1745321969879,0.11375594,88497.0,88496.0,0.011573]
[1745321970080,0.11375594,88497.0,88494.0,0.07499987]
[1745321970356,0.11375594,88497.0,88495.0,0.00777398]
[1745321970541,0.11375594,88497.0,88495.0,0.23377519]
[1745321970920,0.11375594,88497.0,88495.0,0.23277519]
[1745321971519,0.11375594,88497.0,88495.0,0.23377519]
[1745321971719,0.11375594,88497.0,88495.0,0.23277519]
[1745321972479,0.11375594,88497.0,88496.0,0.00705527]
[1745321972949,0.11362085,88497.0,88496.0,0.01290044]
[1745321973504,0.11362085,88497.0,88496.0,0.01382923]
[1745321977247,0.33961721,88497.0,88496.0,0.01382923]
[1745321977390,0.11362085,88497.0,88496.0,0.01382923]
[1745321978238,0.33961721,88497.0,88496.0,0.01382923]
[1745321978871,0.33961721,88497.0,88496.0,0.01290044]
[1745321979182,0.33961721,88497.0,88496.0,0.0139259]
[1745321979776,0.34161721,88497.0,88496.0,0.0139259]
[1745321979975,0.34261721,88497.0,88496.0,0.0139259]
[1745321981091,0.34261721,88497.0,88496.0,0.00705527]
[1745321982440,0.34261721,88497.0,88496.0,0.01299613]
[1745321982655,0.34261721,88497.0,88496.0,0.01392492]
[1745321983943,0.34240907,88497.0,88496.0,0.01392492]
[1745321984346,0.11641271,88497.0,88496.0,0.01392492]
[1745321986680,0.11641271,88497.0,88496.0,0.00705527]
[1745321987656,0.11491546,88497.0,88496.0,0.01392492]
[1745321988545,0.34091182,88497.0,88496.0,0.01392492]
[1745321988690,0.34091182,88497.0,88496.0,0.00705527]
[1745321989520,0.34078273,88497.0,88496.0,0.00705527]
[1745321990118,0.34078273,88497.0,88496.0,0.01393933]
[1745321995249,0.34057959,88497.0,88496.0,0.01393933]
[1745321995552,0.34057959,88497.0,88496.0,0.00705527]
[1745322000713,0.34057959,88497.0,88487.0,0.0008452]
[1745322000714,0.22601934,88488.0,88487.0,0.0008452]
[1745322000926,0.33977528,88488.0,88487.0,0.00775854]
[1745322001590,0.11375594,88488.0,88487.0,0.01128635]
[1745322001769,0.11375594,88488.0,88487.0,0.01228635]
[1745322001976,0.11375594,88488.0,88487.0,0.01233186]
[1745322002146,0.11375594,88488.0,88487.0,0.02038749]
[1745322003258,0.33977528,88488.0,88487.0,0.02038749]
[1745322003657,0.11375594,88488.0,88487.0,0.02038749]
[1745322004310,0.33977528,88488.0,88487.0,0.02038749]
[1745322004483,0.11375594,88488.0,88487.0,0.02038749]
[1745322004873,0.33977528,88488.0,88487.0,0.02038749]
[1745322005071,0.11375594,88488.0,88487.0,0.02038749]
[1745322005711,0.11375594,88488.0,88487.0,0.24640939]
[1745322005924,0.33977528,88488.0,88487.0,0.02038749]
[1745322006166,0.11375594,88488.0,88487.0,0.02038749]
[1745322006708,0.33977528,88488.0,88487.0,0.02038749]
[1745322009335,0.33977528,88488.0,88487.0,0.01938749]
[1745322009736,0.33977528,88488.0,88487.0,0.01838749]
[1745322010141,0.33977528,88488.0,88487.0,0.01938749]
[1745322010550,0.33977528,88488.0,88487.0,0.01838749]
[1745322010956,0.34077528,88488.0,88487.0,0.01838749]
[1745322011238,0.11475594,88488.0,88487.0,0.01838749]
[1745322011691,0.11475594,88488.0,88487.0,0.01147415]
[1745322011913,0.11475594,88488.0,88487.0,0.0184449]
[1745322012704,0.11475594,88488.0,88487.0,0.2444668]
[1745322017846,0.11475594,88488.0,88487.0,0.0184449]
[1745322018052,0.11475594,88488.0,88487.0,0.2444668]
[1745322024830,0.34077528,88488.0,88487.0,0.0184449]
[1745322025361,0.40521613,88488.0,88487.0,0.01147415]
[1745322025797,0.50393613,88488.0,88487.0,0.00441852]
[1745322025999,0.50393613,88488.0,88487.0,0.00089071]
[1745322026255,0.50493613,88488.0,88487.0,0.00089071]
[1745322026644,0.50393613,88488.0,88487.0,0.00089071]
[1745322027754,0.50493613,88488.0,88487.0,0.00089071]
[1745322028495,0.66388818,88488.0,88487.0,0.00089071]
[1745322028694,0.55099203,88488.0,88487.0,0.00089071]
[1745322029220,0.54999203,88488.0,88487.0,0.00089071]
[1745322029584,0.55399203,88488.0,88487.0,0.00089071]
[1745322030134,0.54899203,88488.0,88487.0,0.00089071]
[1745322030439,0.55899203,88488.0,88487.0,0.00089071]
[1745322031547,0.55999203,88488.0,88487.0,0.00089071]
[1745322031838,0.96749203,88488.0,88487.0,0.00089071]
[1745322034131,0.96727588,88488.0,88487.0,0.00089071]
[1745322034338,0.92207588,88488.0,88487.0,0.00089071]
[1745322034576,0.85763503,88488.0,88487.0,0.00089071]
[1745322034981,0.87217588,88488.0,88487.0,0.00089071]
[1745322035604,0.75791503,88488.0,88487.0,0.00089071]
[1745322035826,0.75791503,88488.0,88487.0,0.00794724]
[1745322036213,0.75291503,88488.0,88487.0,0.01147541]
[1745322036426,0.74791503,88488.0,88487.0,0.01147541]
[1745322036828,0.75091503,88488.0,88487.0,0.01147541]
[1745322037085,0.75391503,88488.0,88487.0,0.01147541]
[1745322037340,0.75091503,88488.0,88487.0,0.01147541]
[1745322037540,0.75391503,88488.0,88487.0,0.01147541]
[1745322037685,0.34641503,88488.0,88487.0,0.01147541]
[1745322038645,0.34641503,88488.0,88487.0,0.0248198]
[1745322038849,0.34641503,88488.0,88487.0,0.01248556]
[1745322039380,0.34641503,88488.0,88487.0,0.01147541]
[1745322039736,0.34641503,88488.0,88487.0,0.0248198]
[1745322041049,0.34641503,88488.0,88487.0,0.01147541]
[1745322041678,0.34641503,88488.0,88487.0,0.0248198]
[1745322041878,0.34641503,88488.0,88487.0,0.01248556]
[1745322042258,0.34541503,88488.0,88487.0,0.0124853]
[1745322043232,0.34541503,88488.0,88487.0,0.01147515]
[1745322043458,0.34541503,88488.0,88487.0,0.0248151]
[1745322043669,0.34541503,88488.0,88487.0,0.01248021]
[1745322045255,0.11939569,88488.0,88487.0,0.23850211]
[1745322045529,0.11918855,88488.0,88487.0,0.25077618]
[1745322045768,0.11918855,88488.0,88487.0,0.02475428]
[1745322045964,0.11918855,88488.0,88486.0,0.06998902]
[1745322046185,0.119234,88488.0,88487.0,0.01102649]
[1745322046865,0.116234,88488.0,88487.0,0.01102649]
[1745322047244,0.119234,88488.0,88487.0,0.01102649]
[1745322048657,0.116234,88488.0,88487.0,0.01102649]
[1745322049118,0.119234,88488.0,88487.0,0.01102649]
[1745322053397,0.119234,88488.0,88487.0,0.44382649]
[1745322053618,0.00827823,88517.0,88516.0,0.10309739]
[1745322053828,0.00862623,88525.0,88523.0,0.22592998]
[1745322054059,0.00862623,88525.0,88519.0,0.34]
[1745322054060,5.659e-05,88525.0,88519.0,0.34]
[1745322054280,0.11375594,88524.0,88520.0,0.23723452]
[1745322054517,0.11375594,88524.0,88520.0,0.01129688]
[1745322054730,0.11375594,88524.0,88521.0,0.23723183]
[1745322054925,0.11375594,88524.0,88521.0,0.22593508]
[1745322055133,0.11375594,88524.0,88521.0,0.23804821]
[1745322055340,0.11375594,88524.0,88521.0,0.23723183]
[1745322055772,5.659e-05,88525.0,88523.0,0.22592998]
[1745322055968,0.11381253,88525.0,88523.0,0.22592998]
[1745322057545,0.11381253,88525.0,88524.0,0.00059756]
[1745322058228,0.11481253,88525.0,88524.0,0.00059756]
[1745322058771,0.11381253,88525.0,88524.0,0.00059756]
[1745322058983,0.11481253,88525.0,88524.0,0.00059756]
[1745322060317,0.11481253,88525.0,88524.0,0.01112375]
[1745322062448,0.12935338,88525.0,88524.0,0.01112375]
[1745322062649,0.12935338,88525.0,88504.0,0.01197949]
[1745322062650,0.01129803,88511.0,88504.0,0.01197949]
[1745322062848,0.01129828,88509.0,88505.0,0.0118836]
[1745322063104,0.11375594,88508.0,88505.0,0.00058481]
[1745322063321,0.11305594,88508.0,88505.0,0.34058481]
[1745322063524,0.11305594,88508.0,88505.0,0.3518836]
[1745322064216,0.11305594,88508.0,88506.0,0.22597338]
[1745322064429,0.11305594,88508.0,88507.0,0.00064706]
[1745322064430,0.12435435,88508.0,88507.0,0.00064706]
[1745322064656,0.12435435,88508.0,88505.0,0.34]
[1745322064657,0.22597338,88506.0,88505.0,0.002]
[1745322064858,0.40417017,88506.0,88505.0,0.002]
[1745322065493,0.23730115,88496.0,88491.0,0.01130058]
[1745322065622,0.11375594,88495.0,88491.0,0.01130058]
[1745322065852,0.11375594,88495.0,88492.0,0.00872747]
[1745322066051,0.01130032,88493.0,88489.0,0.23731712]
[1745322066248,0.11375594,88492.0,88491.0,0.00936496]
[1745322066525,0.11375594,88492.0,88491.0,0.23537664]
[1745322067261,0.11375594,88492.0,88491.0,0.00936496]
[1745322068296,0.11475594,88492.0,88491.0,0.00936496]
[1745322076752,0.12929679,88492.0,88491.0,0.00936496]
[1745322076949,0.12929679,88492.0,88487.0,0.001]
[1745322076950,0.0498,88489.0,88487.0,0.001]
[1745322077195,0.33977528,88488.0,88487.0,0.001]
[1745322077616,0.35431613,88488.0,88487.0,0.001]
[1745322078291,0.41012316,88488.0,88487.0,0.001]
[1745322078564,0.41112316,88488.0,88487.0,0.001]
[1745322078764,0.41312316,88488.0,88487.0,0.001]
[1745322079202,0.36582316,88488.0,88487.0,0.001]
[1745322079754,0.13880382,88488.0,88487.0,0.001]
[1745322079982,0.13880382,88488.0,88487.0,0.01094225]
[1745322080207,0.14180382,88488.0,88487.0,0.01094225]
[1745322080576,0.13980382,88488.0,88487.0,0.01094225]
[1745322080776,0.14380382,88488.0,88487.0,0.01094225]
[1745322080978,0.14080382,88488.0,88487.0,0.01094225]
[1745322081179,0.13229679,88488.0,88487.0,0.01094225]
[1745322081378,0.13029679,88488.0,88487.0,0.01094225]
[1745322081614,0.13229679,88488.0,88487.0,0.01094225]
[1745322081811,0.13229679,88488.0,88487.0,0.23696415]
[1745322081972,0.13229679,88488.0,88487.0,0.01094225]
[1745322083100,0.11775594,88488.0,88487.0,0.01094225]
[1745322086189,0.11775594,88488.0,88487.0,0.23696415]
[1745322086388,0.11775594,88488.0,88487.0,0.2270219]
[1745322086582,0.11775594,88488.0,88487.0,0.23695971]
[1745322086810,0.11775594,88488.0,88487.0,0.01093781]
[1745322087247,0.11775594,88488.0,88487.0,0.23695971]
[1745322090935,0.11775594,88488.0,88487.0,0.23595971]
[1745322093603,0.11775594,88488.0,88487.0,0.00993781]
[1745322093804,0.45541613,88488.0,88487.0,0.00993781]
[1745322094022,0.2405653,88486.0,88485.0,0.0008456]
[1745322094262,0.35432124,88486.0,88485.0,0.0008456]
[1745322096489,0.35532124,88486.0,88485.0,0.0008456]
[1745322096662,0.35732124,88486.0,88485.0,0.0008456]
[1745322102428,0.01130262,88475.0,88472.0,0.05641878]
[1745322102632,0.11375594,88474.0,88472.0,0.05647536]
[1745322102814,0.11375594,88474.0,88473.0,0.01002065]
[1745322103777,0.11375594,88474.0,88472.0,0.05847536]
[1745322103975,0.11375594,88474.0,88473.0,0.01002065]
[1745322104224,0.11375594,88474.0,88473.0,0.01202065]
[1745322104387,0.11375594,88474.0,88473.0,0.01402065]
[1745322105916,0.33981105,88474.0,88473.0,0.01402065]
[1745322109807,0.33981105,88474.0,88473.0,0.01490991]
[1745322110085,0.11375594,88474.0,88473.0,0.01490991]
[1745322111424,0.33981105,88474.0,88473.0,0.01490991]
[1745322113556,0.11375594,88474.0,88473.0,0.01490991]
[1745322113973,0.33981105,88474.0,88473.0,0.01490991]
[1745322114913,0.23736392,88472.0,88469.0,0.22606648]
[1745322115118,0.11375594,88471.0,88469.0,0.22611313]
[1745322115624,0.11375594,88471.0,88469.0,4.545e-05]
[1745322115762,0.11375594,88471.0,88469.0,0.22611284]
[1745322115973,0.11375594,88471.0,88469.0,4.545e-05]
[1745322116179,0.11375594,88471.0,88469.0,0.00304545]
[1745322117135,0.11375594,88471.0,88470.0,0.22606533]
[1745322117280,0.11375594,88471.0,88469.0,0.22911104]
[1745322117651,0.11375594,88471.0,88469.0,0.23211104]
[1745322117817,0.11375594,88471.0,88469.0,0.00604545]
[1745322118602,0.11375594,88471.0,88469.0,0.00304545]
[1745322118809,0.11375594,88471.0,88469.0,0.22911316]
[1745322119016,0.33981871,88471.0,88470.0,0.002]
[1745322120043,0.38801871,88471.0,88470.0,0.002]
[1745322120258,0.22606533,88470.0,88469.0,4.545e-05]
[1745322120458,0.33782127,88470.0,88469.0,4.545e-05]
[1745322120663,0.33582127,88470.0,88469.0,4.545e-05]
[1745322122654,0.33582127,88470.0,88469.0,0.00304545]
[1745322123174,0.33582127,88470.0,88469.0,0.00504545]
[1745322123381,0.35036212,88470.0,88469.0,0.00504545]
[1745322129911,0.46411417,88470.0,88469.0,0.00504545]
[1745322130088,0.35036212,88470.0,88469.0,0.00504545]
[1745322130297,0.39856212,88470.0,88469.0,0.00504545]
[1745322131361,0.39856212,88470.0,88461.0,0.01265751]
[1745322131362,0.39856212,88470.0,88461.0,0.0004]
[1745322131567,0.24064196,88456.0,88455.0,0.000845]
[1745322131783,0.37554735,88456.0,88455.0,0.00089049]
[1745322132600,0.37154735,88456.0,88455.0,0.00089049]
[1745322133002,0.37154735,88456.0,88455.0,0.00289049]
[1745322133201,0.38021703,88456.0,88455.0,0.00089049]
[1745322133408,0.38021703,88456.0,88455.0,0.00189049]
[1745322133668,0.38021703,88456.0,88455.0,0.00289049]
[1745322133864,0.38021703,88456.0,88455.0,0.00189049]
[1745322134012,0.38021703,88456.0,88455.0,0.00089049]
[1745322134223,0.38021703,88456.0,88455.0,0.00289049]
[1745322135670,0.35906758,88456.0,88455.0,0.00289049]
[1745322136882,0.38021703,88456.0,88455.0,0.00289049]
[1745322138670,0.15811592,88456.0,88455.0,0.00289049]
[1745322138815,0.13696647,88456.0,88455.0,0.00289049]
[1745322139032,0.13696647,88456.0,88455.0,0.01349573]
[1745322139203,0.13696647,88456.0,88455.0,0.00289049]
[1745322139561,0.13611391,88456.0,88455.0,0.00289049]
[1745322144018,0.15721196,88456.0,88455.0,0.00289049]
[1745322145106,0.15721196,88456.0,88455.0,0.01154141]
[1745322145745,0.38331307,88456.0,88455.0,0.01154141]
[1745322146967,0.38331307,88456.0,88455.0,0.00289049]
[1745322147141,0.36221502,88456.0,88455.0,0.01154173]
[1745322148615,0.38332536,88456.0,88455.0,0.00289049]
[1745322148925,0.38332536,88456.0,88455.0,0.01148604]
[1745322150694,0.38332536,88456.0,88455.0,0.00289049]
[1745322150910,0.38332536,88456.0,88455.0,0.01148541]
[1745322151102,0.38332536,88456.0,88455.0,0.00289049]
[1745322151306,0.38332536,88456.0,88455.0,0.01148541]
[1745322151499,0.38332536,88456.0,88455.0,0.00289049]
[1745322153287,0.38332536,88456.0,88455.0,0.01148541]
[1745322153445,0.38332536,88456.0,88455.0,0.00289049]
[1745322154542,0.38019918,88456.0,88455.0,0.00289049]
[1745322155613,0.36963707,88456.0,88455.0,0.00289049]
[1745322156122,0.34852673,88456.0,88455.0,0.00289049]
[1745322161597,0.36967726,88456.0,88455.0,0.00289049]
[1745322162316,0.38025302,88456.0,88455.0,0.00289049]
[1745322163813,0.39479387,88456.0,88455.0,0.00289049]
[1745322164218,0.48989387,88456.0,88455.0,0.00289049]
[1745322165665,0.49089387,88456.0,88455.0,0.00189049]
[1745322166159,0.49090107,88456.0,88455.0,0.00189049]
[1745322166668,0.48990107,88456.0,88455.0,0.00189049]
[1745322166865,0.89740107,88456.0,88455.0,0.00189049]
[1745322167068,0.89840107,88456.0,88455.0,0.00189049]
[1745322173289,0.99911719,88456.0,88455.0,0.00189049]
[1745322173867,0.89840107,88456.0,88455.0,0.00189049]
[1745322174454,0.89740107,88456.0,88455.0,0.00189049]
[1745322174598,0.89840107,88456.0,88455.0,0.00089049]
[1745322174784,0.90540107,88456.0,88455.0,0.00189049]
[1745322175196,0.85600107,88456.0,88455.0,0.00189049]
[1745322175420,0.86400107,88456.0,88455.0,0.00289049]
[1745322181300,0.22612923,88445.0,88444.0,96.66846371]
[1745322181538,0.22612923,88445.0,88444.0,96.67044967]
[1745322181539,0.33988517,88445.0,88444.0,96.67044967]
[1745322181743,0.33988517,88445.0,88444.0,96.67924174]
[1745322182117,0.11375594,88445.0,88444.0,96.67924174]
[1745322182479,0.34388517,88445.0,88444.0,96.67924174]
[1745322182778,0.34888517,88445.0,88444.0,96.67924174]
[1745322183274,0.34488517,88445.0,88444.0,96.67924174]
[1745322184286,0.33988517,88445.0,88444.0,96.67924174]
[1745322184631,0.34888517,88445.0,88444.0,96.67924174]
[1745322189643,0.34888517,88445.0,88444.0,96.48404263]
[1745322191483,0.35945419,88445.0,88444.0,96.48404263]
[1745322201922,0.83049504,88445.0,88444.0,96.48404263]
[1745322202197,0.78149504,88445.0,88444.0,96.48404263]
[1745322204188,0.90035027,88445.0,88444.0,96.48404263]
[1745322206026,0.90624604,88445.0,88444.0,96.48404263]
[1745322206168,0.90624604,88445.0,88444.0,96.48044404]
[1745322206382,0.90124604,88445.0,88444.0,96.48044404]
[1745322207636,0.89724604,88445.0,88444.0,96.48044404]
[1745322207848,0.90124604,88445.0,88444.0,96.48044404]
[1745322208074,0.90424604,88445.0,88444.0,96.48044404]
[1745322208222,0.90124604,88445.0,88444.0,96.48044404]
[1745322208432,0.88009081,88445.0,88444.0,96.48044404]
[1745322208590,0.88409081,88445.0,88444.0,96.48044404]
[1745322208792,0.88109081,88445.0,88444.0,96.48044404]
[1745322209061,0.88009081,88445.0,88444.0,96.48044404]
[1745322209459,0.9022072,88445.0,88444.0,96.48044404]
[1745322210891,1.01495925,88445.0,88444.0,96.48044404]
[1745322211064,1.01895925,88445.0,88444.0,96.48044404]
[1745322211242,0.9052072,88445.0,88444.0,96.48044404]
[1745322211446,0.9022072,88445.0,88444.0,96.48044404]
[1745322211725,0.8982072,88445.0,88444.0,96.48044404]
[1745322212042,1.2452072,88445.0,88444.0,96.48044404]
[1745322212401,1.2382072,88445.0,88444.0,96.48044404]
[1745322212602,1.2412072,88445.0,88444.0,96.48044404]
[1745322213376,1.2452072,88445.0,88444.0,96.48044404]
[1745322213932,1.35595925,88445.0,88444.0,96.48044404]
[1745322214388,1.2422072,88445.0,88444.0,96.48044404]
[1745322214580,1.2382072,88445.0,88444.0,96.48044404]
[1745322214790,1.2442072,88445.0,88444.0,96.48144404]
[1745322214956,1.2502072,88445.0,88444.0,96.48244404]
[1745322215156,1.3690072,88445.0,88444.0,96.48244404]
[1745322215494,1.2502072,88445.0,88444.0,96.48244404]
[1745322215840,1.26324453,88445.0,88444.0,96.48244404]
[1745322217124,1.2502072,88445.0,88444.0,96.48244404]
[1745322222278,1.2492072,88445.0,88444.0,96.48244404]
[1745322230135,1.2005072,88445.0,88444.0,96.48244404]
[1745322230338,0.8115072,88445.0,88444.0,96.48244404]
[1745322237879,0.9309872,88445.0,88444.0,96.48244404]
[1745322238484,0.92509143,88445.0,88444.0,96.48244404]
[1745322239446,0.92509143,88445.0,88444.0,96.25373832]
[1745322248534,0.9309872,88445.0,88444.0,96.25373832]
[1745322248731,0.9309872,88445.0,88444.0,96.01608598]
[1745322252374,0.9309472,88445.0,88444.0,96.01608598]
[1745322268977,0.96269554,88445.0,88444.0,96.01608598]
[1745322269603,1.35219554,88445.0,88444.0,96.01608598]
[1745322274129,1.30269554,88445.0,88444.0,96.01608598]
[1745322274538,1.18325554,88445.0,88444.0,96.01608598]
[1745322274747,1.29929554,88445.0,88444.0,96.01608598]
[1745322275532,1.29329554,88445.0,88444.0,96.01508598]
[1745322275873,1.29829554,88445.0,88444.0,96.01608598]
[1745322276046,1.29229554,88445.0,88444.0,96.01508598]
[1745322276226,1.40604759,88445.0,88444.0,96.01508598]
[1745322276434,1.41204759,88445.0,88444.0,96.01608598]
[1745322276651,1.51154759,88445.0,88444.0,96.01043736]
[1745322277442,1.39779554,88445.0,88444.0,96.01043736]
[1745322277814,1.39179554,88445.0,88444.0,95.96424239]
[1745322277957,1.39379554,88445.0,88444.0,95.96424239]
[1745322278345,0.99229554,88445.0,88444.0,94.52524674]
[1745322278574,1.1288472,88445.0,88444.0,93.54126272]
[1745322278779,1.1288472,88445.0,88444.0,93.53561335]
[1745322278780,1.24259925,88445.0,88444.0,93.53561335]
[1745322279166,1.24259925,88445.0,88444.0,93.49041838]
[1745322279586,1.23059925,88445.0,88444.0,93.48276901]
[1745322279787,1.23559925,88445.0,88444.0,93.44322341]
[1745322279991,1.24159925,88445.0,88444.0,93.43857404]
[1745322280311,1.23659925,88445.0,88444.0,93.43857404]
[1745322280471,1.23659925,88445.0,88444.0,93.39337907]
[1745322280868,1.1228472,88445.0,88444.0,93.3877297]
[1745322281109,1.1258472,88445.0,88444.0,93.3481841]
[1745322281310,1.1258472,88445.0,88444.0,93.34892938]
[1745322282415,1.1228472,88445.0,88444.0,93.34892938]
[1745322282622,1.0078072,88445.0,88444.0,93.34892938]
[1745322282825,1.1278472,88445.0,88444.0,93.34892938]
[1745322282943,1.24159925,88445.0,88444.0,93.34892938]
[1745322284055,1.64909925,88445.0,88444.0,92.94142938]
[1745322286094,1.5353472,88445.0,88444.0,92.94142938]